[Event "44th Chess Olympiad Open 2022"]
[Site "Chennai"]
[Date "2022.08.08"]
[Round "10.65"]
[White "Alegre, Fabio Costa"]
[Black "Ursus van Bemmelen"]
[Result "1/2-1/2"]
[WhiteElo "1809"]
[BlackElo "2145"]
[Annotator "NA RC"]
[PlyCount "110"]
[EventDate "2022.??.??"]
[TimeControl "60"]

1. c4 {[%emt 0:00:15]} e5 {[%emt 0:00:25]} 2. Nc3 {[%emt 0:00:35]} Bb4 {
[%emt 0:00:29]} 3. e4 {[%emt 0:01:24]} Bxc3 {[%emt 0:01:07]} 4. dxc3 {[%emt 0:
00:00]} d6 {[%emt 0:00:33]} 5. Bd3 {[%emt 0:00:15]} h6 {[%emt 0:00:57]} 6. Ne2
{[%emt 0:00:13]} Nd7 {[%emt 0:07:34]} 7. Be3 {[%emt 0:00:33]} Ngf6 {[%emt 0:00:
00]} 8. h3 {[%emt 0:00:08]} Nc5 {[%emt 0:00:33]} 9. Bxc5 {[%emt 0:00:07]} dxc5
{[%emt 0:00:15]} 10. Ng3 {[%emt 0:00:35]} Qd6 {[%emt 0:10:03]} 11. Qb3 {
[%emt 0:01:22]} Qb6 {[%emt 0:15:00]} 12. Be2 {[%emt 0:01:07]} Be6 {[%emt 0:00:
00]} 13. Rd1 {[%emt 0:00:18]} Qxb3 {[%emt 0:03:31]} 14. axb3 {[%emt 0:00:07]}
a5 {[%emt 0:00:10]} 15. f3 {[%emt 0:01:02]} Ke7 {[%emt 0:04:43]} 16. Ra1 {
[%emt 0:01:39]} Rhd8 {[%emt 0:01:24]} 17. Bd1 {[%emt 0:01:59]} c6 {[%emt 0:00:
00]} 18. Rf1 {[%emt 0:00:40]} g6 {[%emt 0:04:44]} 19. Rf2 {[%emt 0:00:27]} b5 {
[%emt 0:02:40]} 20. cxb5 {[%emt 0:00:36]} cxb5 {[%emt 0:00:03]} 21. Rd2 {
[%emt 0:00:12]} Nd7 {[%emt 0:02:11]} 22. Bc2 {[%emt 0:01:38]} b4 {[%emt 0:00:
00]} 23. c4 {[%emt 0:01:28]} Nb8 {[%emt 0:00:50]} 24. Rxd8 {[%emt 0:00:09]}
Kxd8 {[%emt 0:00:02]} 25. Nf1 {[%emt 0:01:07]} Nc6 {[%emt 0:00:25]} 26. Ne3 {
[%emt 0:00:14]} Nd4 {[%emt 0:00:15]} 27. Kd2 {[%emt 0:00:42]} Kc7 {[%emt 0:00:
00]} 28. Re1 {[%emt 0:00:43]} Kd6 {[%emt 0:01:36]} 29. Bd1 {[%emt 0:00:40]} f5
{[%emt 0:01:03]} 30. Kd3 {[%emt 0:01:32]} Rf8 {[%emt 0:07:50]} 31. Rf1 {
[%emt 0:01:18]} Rf7 {[%emt 0:01:12]} 32. Bc2 {[%emt 0:01:56]} Rf8 {[%emt 0:00:
00]} 33. Bd1 {[%emt 0:00:01]} Bd7 {[%emt 0:01:58]} 34. g4 {[%emt 0:02:18]}
fxe4+ {[%emt 0:00:25]} 35. fxe4 {[%emt 0:00:10]} Rxf1 {[%emt 0:00:10]} 36. Nxf1
{[%emt 0:00:06]} g5 {[%emt 0:02:45]} 37. Ne3 {[%emt 0:00:30]} Bc6 {[%emt 0:00:
00]} 38. Nf5+ {[%emt 0:00:44]} Nxf5 {[%emt 0:00:13]} 39. gxf5 {[%emt 0:00:08]}
Be8 {[%emt 0:00:32]} 40. Ke3 {[%emt 0:00:27]} Ke7 {[%emt 0:00:49]} 41. Be2 {
[%emt 0:33:40]} a4 {[%emt 0:00:43]} 42. bxa4 {[%emt 0:00:00]} Bxa4 {[%emt 0:00:
00]} 43. Kd2 {[%emt 0:00:00]} Bb3 {[%emt 0:01:52]} 44. Kd3 {[%emt 0:00:00]} Kf6
{[%emt 0:00:52]} 45. Bh5 {[%emt 0:00:00]} Ba2 {[%emt 0:00:25]} 46. Be2 {
[%emt 0:00:00]} Bb1+ {[%emt 0:01:24]} 47. Ke3 {[%emt 0:00:00]} Bc2 {[%emt 0:00:
00]} 48. Bh5 {[%emt 0:00:00]} Ba4 {[%emt 0:00:33]} 49. Kd2 {[%emt 0:00:00]} Bb3
{[%emt 0:00:28]} 50. Kd3 {[%emt 0:00:00]} Kg7 {[%emt 0:00:24]} 51. Be2 {
[%emt 0:00:00]} Ba4 {[%emt 0:00:48]} 52. Bh5 {[%emt 0:00:00]} Kf6 {[%emt 0:00:
00]} 53. Kd2 {[%emt 0:00:00]} Bc6 {[%emt 0:00:42]} 54. Ke3 {[%emt 0:00:00]} Bd7
{[%emt 0:00:19]} 55. b3 {[%emt 0:00:00]} Bc6 {[%emt 0:02:50]} 1/2-1/2

[Event "44th Chess Olympiad Open 2022"]
[Site "Chennai"]
[Date "2022.08.08"]
[Round "10.66"]
[White "Al-Hajiri, Bader"]
[Black "Ortega Amarelle, Mariano"]
[Result "0-1"]
[WhiteElo "2011"]
[BlackElo "2463"]
[Annotator "RC"]
[PlyCount "106"]
[EventDate "2022.??.??"]
[TimeControl "60"]

1. d4 {[%emt 0:00:09]} Nf6 {[%emt 0:00:14]} 2. c4 {[%emt 0:00:12]} e6 {[%emt 0:
00:00]} 3. Nf3 {[%emt 0:00:13]} d5 {[%emt 0:01:04]} 4. Bg5 {[%emt 0:02:35]}
dxc4 {[%emt 0:18:18]} 5. Qa4+ {[%emt 0:05:52]} Nbd7 {[%emt 0:00:25]} 6. Nc3 {
[%emt 0:02:59]} Be7 {[%emt 0:03:18]} 7. e3 {[%emt 0:01:40]} O-O {[%emt 0:00:13]
} 8. Qxc4 {[%emt 0:00:07]} a6 {[%emt 0:00:18]} 9. Be2 {[%emt 0:01:21]} b5 {
[%emt 0:02:08]} 10. Qb3 {[%emt 0:00:48]} c5 {[%emt 0:01:11]} 11. O-O {[%emt 0:
00:00]} h6 {[%emt 0:13:22]} 12. Bh4 {[%emt 0:02:38]} c4 {[%emt 0:04:04]} 13.
Qc2 {[%emt 0:05:50]} Bb7 {[%emt 0:00:07]} 14. Rfd1 {[%emt 0:02:25]} Nd5 {
[%emt 0:06:01]} 15. Bg3 {[%emt 0:02:28]} N7f6 {[%emt 0:13:00]} 16. Nd2 {
[%emt 0:06:25]} Rc8 {[%emt 0:02:15]} 17. a3 {[%emt 0:05:40]} Nb6 {[%emt 0:00:
00]} 18. Bf3 {[%emt 0:06:23]} Qd7 {[%emt 0:01:53]} 19. Nde4 {[%emt 0:01:02]}
Nxe4 {[%emt 0:03:03]} 20. Nxe4 {[%emt 0:01:39]} Bd5 {[%emt 0:03:54]} 21. Nc5 {
[%emt 0:04:31]} Qa7 {[%emt 0:00:08]} 22. e4 {[%emt 0:00:11]} Ba8 {[%emt 0:00:
00]} 23. b4 {[%emt 0:00:12]} cxb3 {[%emt 0:01:10]} 24. Qxb3 {[%emt 0:00:09]}
Nc4 {[%emt 0:07:48]} 25. a4 {[%emt 0:18:00]} Bxc5 {[%emt 0:00:06]} 26. dxc5 {
[%emt 0:00:05]} Qxc5 {[%emt 0:00:04]} 27. axb5 {[%emt 0:00:04]} axb5 {[%emt 0:
00:00]} 28. Rab1 {[%emt 0:00:22]} Bc6 {[%emt 0:00:58]} 29. e5 {[%emt 0:05:36]}
Bxf3 {[%emt 0:00:21]} 30. Qxf3 {[%emt 0:00:07]} Rfd8 {[%emt 0:02:02]} 31. Rxd8+
{[%emt 0:05:38]} Rxd8 {[%emt 0:00:08]} 32. h3 {[%emt 0:00:46]} Nd2 {[%emt 0:00:
00]} 33. Qd1 {[%emt 0:00:09]} Rd4 {[%emt 0:00:42]} 34. Ra1 {[%emt 0:01:47]} Qd5
{[%emt 0:02:12]} 35. Qc2 {[%emt 0:02:17]} Rc4 {[%emt 0:01:33]} 36. Qb2 {
[%emt 0:01:11]} b4 {[%emt 0:01:27]} 37. Ra4 {[%emt 0:05:22]} Qd4 {[%emt 0:00:
00]} 38. Qxd4 {[%emt 0:01:31]} Rxd4 {[%emt 0:00:04]} 39. f3 {[%emt 0:00:10]}
Rc4 {[%emt 0:01:32]} 40. Be1 {[%emt 0:01:07]} b3 {[%emt 0:00:40]} 41. Ra8+ {
[%emt 0:30:52]} Kh7 {[%emt 0:30:04]} 42. Rb8 {[%emt 0:00:20]} Rc1 {[%emt 0:00:
00]} 43. Kf2 {[%emt 0:00:52]} Rc2 {[%emt 0:00:33]} 44. Bxd2 {[%emt 0:00:33]}
Rxd2+ {[%emt 0:00:10]} 45. Kg3 {[%emt 0:03:52]} b2 {[%emt 0:00:30]} 46. f4 {
[%emt 0:00:00]} h5 {[%emt 0:00:00]} 47. Kf3 {[%emt 0:00:00]} h4 {[%emt 0:00:00]
} 48. g4 {[%emt 0:00:00]} Rh2 {[%emt 0:07:27]} 49. Ke4 {[%emt 0:00:00]} Kg6 {
[%emt 0:00:00]} 50. Rb6 {[%emt 0:00:00]} Rxh3 {[%emt 0:00:00]} 51. Rxb2 {
[%emt 0:00:00]} Rg3 {[%emt 0:00:00]} 52. g5 {[%emt 0:00:00]} h3 {[%emt 0:00:00]
} 53. f5+ {[%emt 0:00:00]} Kxg5 {[%emt 0:00:00]} 0-1

[Event "44th Chess Olympiad Open 2022"]
[Site "Chennai"]
[Date "2022.08.08"]
[Round "10.66"]
[White "Rodriguez Guevara, Celia M."]
[Black "Al Ibrahim, Abdulrahman"]
[Result "0-1"]
[WhiteElo "1859"]
[BlackElo "1822"]
[Annotator "NA RC"]
[PlyCount "84"]
[EventDate "2022.??.??"]
[TimeControl "60"]

1. e4 {[%emt 0:00:05]} e6 {[%emt 0:00:04]} 2. d4 {[%emt 0:00:10]} d5 {[%emt 0:
00:00]} 3. e5 {[%emt 0:00:09]} c5 {[%emt 0:00:06]} 4. c3 {[%emt 0:00:15]} Qb6 {
[%emt 0:00:10]} 5. Nf3 {[%emt 0:00:28]} Nc6 {[%emt 0:00:06]} 6. Bd3 {[%emt 0:
00:00]} Bd7 {[%emt 0:00:07]} 7. dxc5 {[%emt 0:00:34]} Bxc5 {[%emt 0:02:24]} 8.
O-O {[%emt 0:01:27]} a5 {[%emt 0:03:00]} 9. b3 {[%emt 0:16:25]} Nge7 {[%emt 0:
00:00]} 10. h4 {[%emt 0:13:17]} h6 {[%emt 0:07:08]} 11. Qe2 {[%emt 0:15:00]}
O-O-O {[%emt 0:06:15]} 12. a3 {[%emt 0:08:04]} Qxb3 {[%emt 0:01:15]} 13. Nbd2 {
[%emt 0:04:18]} Qb6 {[%emt 0:05:37]} 14. Rb1 {[%emt 0:03:40]} Qa7 {[%emt 0:00:
00]} 15. Nb3 {[%emt 0:05:43]} Bb6 {[%emt 0:00:27]} 16. Nbd4 {[%emt 0:02:41]}
Nxd4 {[%emt 0:06:00]} 17. Nxd4 {[%emt 0:00:15]} Bxd4 {[%emt 0:02:49]} 18. cxd4
{[%emt 0:00:17]} Bc6 {[%emt 0:01:21]} 19. Be3 {[%emt 0:04:44]} Kd7 {[%emt 0:00:
00]} 20. Bb5 {[%emt 0:05:30]} Rb8 {[%emt 0:01:03]} 21. a4 {[%emt 0:01:18]} Bxb5
{[%emt 0:11:58]} 22. Qxb5+ {[%emt 0:02:26]} Nc6 {[%emt 0:00:11]} 23. Rfc1 {
[%emt 0:03:45]} Rhc8 {[%emt 0:02:28]} 24. Rc3 {[%emt 0:08:07]} Qa6 {[%emt 0:00:
00]} 25. Rc5 {[%emt 0:01:33]} Qxb5 {[%emt 0:07:00]} 26. Rbxb5 {[%emt 0:00:02]}
b6 {[%emt 0:00:29]} 27. Rc1 {[%emt 0:01:12]} Nb4 {[%emt 0:06:05]} 28. Rxc8 {
[%emt 0:00:14]} Kxc8 {[%emt 0:00:04]} 29. Bc1 {[%emt 0:00:34]} Kb7 {[%emt 0:00:
00]} 30. Ba3 {[%emt 0:00:12]} Nc2 {[%emt 0:02:23]} 31. Bb2 {[%emt 0:01:11]} Rc8
{[%emt 0:00:10]} 32. Rb3 {[%emt 0:00:29]} Ka6 {[%emt 0:01:11]} 33. Rc3 {
[%emt 0:00:05]} Rxc3 {[%emt 0:00:11]} 34. Bxc3 {[%emt 0:00:02]} b5 {[%emt 0:00:
00]} 35. axb5+ {[%emt 0:00:27]} Kxb5 {[%emt 0:00:04]} 36. Kf1 {[%emt 0:01:27]}
a4 {[%emt 0:00:07]} 37. Ke2 {[%emt 0:00:13]} Kc4 {[%emt 0:00:23]} 38. Kd2 {
[%emt 0:00:20]} Kb3 {[%emt 0:01:14]} 39. g4 {[%emt 0:00:27]} a3 {[%emt 0:00:15]
} 40. f4 {[%emt 0:00:29]} g6 {[%emt 0:06:19]} 41. f5 {[%emt 0:31:03]} gxf5 {
[%emt 0:30:24]} 42. g5 {[%emt 0:00:16]} h5 {[%emt 0:00:04]} 0-1

[Event "44th Chess Olympiad Open 2022"]
[Site "Chennai"]
[Date "2022.08.08"]
[Round "10.66"]
[White "Teixeira, Gil"]
[Black "Hussain, Hashem"]
[Result "1/2-1/2"]
[WhiteElo "1741"]
[BlackElo "1757"]
[Annotator "NA RC"]
[PlyCount "107"]
[EventDate "2022.??.??"]
[TimeControl "60"]

1. e4 {[%emt 0:00:48]} c5 {[%emt 0:00:06]} 2. Bc4 {[%emt 0:00:07]} Nc6 {
[%emt 0:00:37]} 3. Nf3 {[%emt 0:00:27]} g6 {[%emt 0:01:05]} 4. O-O {[%emt 0:00:
00]} Bg7 {[%emt 0:00:22]} 5. d3 {[%emt 0:00:12]} e6 {[%emt 0:01:53]} 6. a4 {
[%emt 0:00:18]} Nge7 {[%emt 0:01:35]} 7. Nc3 {[%emt 0:00:14]} O-O {[%emt 0:00:
00]} 8. Bg5 {[%emt 0:00:14]} f6 {[%emt 0:07:57]} 9. Bh4 {[%emt 0:01:00]} d5 {
[%emt 0:02:27]} 10. Ba2 {[%emt 0:00:19]} Kh8 {[%emt 0:03:53]} 11. h3 {[%emt 0:
00:00]} d4 {[%emt 0:06:40]} 12. Nb5 {[%emt 0:02:55]} a6 {[%emt 0:01:41]} 13.
Na3 {[%emt 0:00:26]} e5 {[%emt 0:05:14]} 14. Nh2 {[%emt 0:01:25]} g5 {[%emt 0:
00:00]} 15. Bg3 {[%emt 0:01:23]} f5 {[%emt 0:05:35]} 16. exf5 {[%emt 0:10:21]}
Nxf5 {[%emt 0:00:13]} 17. Qh5 {[%emt 0:02:21]} Nb4 {[%emt 0:07:32]} 18. Bc4 {
[%emt 0:01:36]} Bd7 {[%emt 0:01:39]} 19. c3 {[%emt 0:00:21]} Be8 {[%emt 0:00:
00]} 20. Qe2 {[%emt 0:00:43]} dxc3 {[%emt 0:08:47]} 21. bxc3 {[%emt 0:00:20]}
Nd5 {[%emt 0:02:25]} 22. Bxe5 {[%emt 0:00:14]} Nxc3 {[%emt 0:00:24]} 23. Bxg7+
{[%emt 0:02:31]} Nxg7 {[%emt 0:00:17]} 24. Qe5 {[%emt 0:01:31]} Nxa4 {[%emt 0:
00:00]} 25. Ng4 {[%emt 0:02:00]} Qd4 {[%emt 0:02:26]} 26. Qxg5 {[%emt 0:00:28]}
b5 {[%emt 0:02:04]} 27. Bb3 {[%emt 0:01:52]} Nc3 {[%emt 0:02:02]} 28. Qe3 {
[%emt 0:05:14]} Bg6 {[%emt 0:05:22]} 29. Ne5 {[%emt 0:00:28]} Qxe3 {[%emt 0:00:
00]} 30. Nxg6+ {[%emt 0:00:20]} hxg6 {[%emt 0:00:11]} 31. fxe3 {[%emt 0:00:41]}
Nf5 {[%emt 0:00:49]} 32. Rf3 {[%emt 0:03:20]} Rad8 {[%emt 0:05:45]} 33. Bc2 {
[%emt 0:00:53]} Kg7 {[%emt 0:01:18]} 34. Nb1 {[%emt 0:06:32]} Nxb1 {[%emt 0:00:
00]} 35. Bxb1 {[%emt 0:00:12]} Rd6 {[%emt 0:00:09]} 36. g4 {[%emt 0:00:34]} Ne7
{[%emt 0:01:20]} 37. Rxf8 {[%emt 0:01:28]} Kxf8 {[%emt 0:00:05]} 38. e4 {
[%emt 0:00:19]} g5 {[%emt 0:00:37]} 39. Kf2 {[%emt 0:00:41]} Ng6 {[%emt 0:00:
00]} 40. Ke3 {[%emt 0:00:34]} Ke7 {[%emt 0:02:58]} 41. Bc2 {[%emt 0:30:25]} Ne5
{[%emt 0:34:41]} 42. Ra3 {[%emt 0:03:19]} Rh6 {[%emt 0:00:40]} 43. Kd2 {
[%emt 0:00:45]} Kd7 {[%emt 0:00:00]} 44. Ra1 {[%emt 0:00:00]} Kc7 {[%emt 0:00:
00]} 45. Rf1 {[%emt 0:00:00]} Rxh3 {[%emt 0:00:00]} 46. Rf5 {[%emt 0:00:00]}
Kd6 {[%emt 0:00:00]} 47. Rf6+ {[%emt 0:00:00]} Kc7 {[%emt 0:00:00]} 48. Rxa6 {
[%emt 0:00:00]} Nxg4 {[%emt 0:00:00]} 49. Rg6 {[%emt 0:00:00]} Ne5 {[%emt 0:00:
00]} 50. Re6 {[%emt 0:00:00]} Nf3+ {[%emt 0:00:00]} 51. Kc3 {[%emt 0:00:00]}
Ne1 {[%emt 0:00:00]} 52. Re5 {[%emt 0:00:00]} c4 {[%emt 0:00:00]} 53. Rxb5 {
[%emt 0:00:00]} cxd3 {[%emt 0:00:00]} 54. Bd1 {[%emt 0:00:00]} 1/2-1/2

[Event "44th Chess Olympiad Open 2022"]
[Site "Chennai"]
[Date "2022.08.08"]
[Round "10.66"]
[White "Alhejab, Meshal"]
[Black "Mirulla, David"]
[Result "0-1"]
[WhiteElo "1732"]
[BlackElo "1953"]
[Annotator "NA RC"]
[PlyCount "48"]
[EventDate "2022.??.??"]
[TimeControl "60"]

1. e4 {[%emt 0:00:02]} e5 {[%emt 0:00:07]} 2. Nf3 {[%emt 0:00:03]} Nc6 {
[%emt 0:00:08]} 3. Bb5 {[%emt 0:00:04]} a6 {[%emt 0:00:16]} 4. Ba4 {[%emt 0:00:
00]} Nf6 {[%emt 0:00:11]} 5. O-O {[%emt 0:00:17]} Be7 {[%emt 0:00:33]} 6. Re1 {
[%emt 0:00:31]} b5 {[%emt 0:00:10]} 7. Bb3 {[%emt 0:00:05]} O-O {[%emt 0:00:11]
} 8. c3 {[%emt 0:00:20]} d5 {[%emt 0:00:52]} 9. exd5 {[%emt 0:00:05]} Nxd5 {
[%emt 0:00:11]} 10. Nxe5 {[%emt 0:00:09]} Nxe5 {[%emt 0:00:08]} 11. Rxe5 {
[%emt 0:00:04]} Nf6 {[%emt 0:00:54]} 12. d4 {[%emt 0:01:33]} Bd6 {[%emt 0:00:
00]} 13. Re1 {[%emt 0:02:19]} Ng4 {[%emt 0:00:29]} 14. g3 {[%emt 0:01:43]} Nxh2
{[%emt 0:11:08]} 15. Bd5 {[%emt 0:18:59]} Bg4 {[%emt 0:16:57]} 16. Qd3 {
[%emt 0:09:36]} Qf6 {[%emt 0:05:19]} 17. Kg2 {[%emt 0:18:29]} Rae8 {[%emt 0:00:
00]} 18. Rxe8 {[%emt 0:37:45]} Rxe8 {[%emt 0:00:11]} 19. f3 {[%emt 0:04:09]}
Bf5 {[%emt 0:06:46]} 20. Be4 {[%emt 0:01:43]} Qg6 {[%emt 0:04:10]} 21. g4 {
[%emt 0:01:51]} Rxe4 {[%emt 0:00:30]} 22. g5 {[%emt 0:01:06]} Rg4+ {[%emt 0:00:
00]} 23. fxg4 {[%emt 0:00:07]} Bxd3 {[%emt 0:00:11]} 24. Nd2 {[%emt 0:00:42]}
Qxg5 {[%emt 0:01:30]} 0-1

[Event "44th Chess Olympiad Open 2022"]
[Site "Chennai"]
[Date "2022.08.08"]
[Round "10.67"]
[White "Paiva, Donaldo"]
[Black "Maung, Maung Kyaw Zaw Hein"]
[Result "1/2-1/2"]
[WhiteElo "2191"]
[BlackElo "2121"]
[Annotator "RC"]
[PlyCount "123"]
[EventDate "2022.??.??"]
[TimeControl "60"]

1. d4 {[%emt 0:00:01]} d5 {[%emt 0:00:05]} 2. c4 {[%emt 0:00:05]} c6 {[%emt 0:
00:00]} 3. Nf3 {[%emt 0:00:05]} Nf6 {[%emt 0:00:06]} 4. Nc3 {[%emt 0:00:05]} e6
{[%emt 0:00:40]} 5. e3 {[%emt 0:00:15]} Nbd7 {[%emt 0:00:11]} 6. Qc2 {[%emt 0:
00:00]} Bd6 {[%emt 0:01:24]} 7. b3 {[%emt 0:00:06]} O-O {[%emt 0:00:10]} 8. Be2
{[%emt 0:00:05]} b6 {[%emt 0:01:04]} 9. O-O {[%emt 0:00:55]} Bb7 {[%emt 0:00:
00]} 10. Rd1 {[%emt 0:00:15]} Rc8 {[%emt 0:06:16]} 11. e4 {[%emt 0:18:36]} e5 {
[%emt 0:12:42]} 12. dxe5 {[%emt 0:03:41]} Nxe5 {[%emt 0:00:42]} 13. Bg5 {
[%emt 0:03:35]} h6 {[%emt 0:05:08]} 14. Bh4 {[%emt 0:04:25]} Ng6 {[%emt 0:00:
00]} 15. Bg3 {[%emt 0:15:38]} Re8 {[%emt 0:10:13]} 16. exd5 {[%emt 0:16:41]}
cxd5 {[%emt 0:01:58]} 17. Nd4 {[%emt 0:11:47]} Ne5 {[%emt 0:20:21]} 18. Nf5 {
[%emt 0:01:57]} Bf8 {[%emt 0:09:33]} 19. Qb2 {[%emt 0:06:10]} Qd7 {[%emt 0:00:
00]} 20. Ne3 {[%emt 0:02:28]} d4 {[%emt 0:11:44]} 21. Nb5 {[%emt 0:00:07]} Ba8
{[%emt 0:03:52]} 22. Nxd4 {[%emt 0:00:49]} Qb7 {[%emt 0:00:35]} 23. Bf1 {
[%emt 0:00:17]} Ne4 {[%emt 0:01:07]} 24. Nd5 {[%emt 0:03:17]} Nxg3 {[%emt 0:00:
00]} 25. hxg3 {[%emt 0:00:07]} Rcd8 {[%emt 0:00:47]} 26. Nb5 {[%emt 0:03:03]}
Rc8 {[%emt 0:01:17]} 27. Re1 {[%emt 0:01:43]} a6 {[%emt 0:00:44]} 28. Rxe5 {
[%emt 0:04:20]} Rxe5 {[%emt 0:00:07]} 29. Qxe5 {[%emt 0:00:06]} axb5 {[%emt 0:
00:00]} 30. Re1 {[%emt 0:01:01]} bxc4 {[%emt 0:00:28]} 31. bxc4 {[%emt 0:00:06]
} b5 {[%emt 0:01:47]} 32. Ne3 {[%emt 0:01:56]} bxc4 {[%emt 0:00:41]} 33. Rc1 {
[%emt 0:00:35]} c3 {[%emt 0:00:58]} 34. Rxc3 {[%emt 0:01:13]} Qb2 {[%emt 0:00:
00]} 35. Rc5 {[%emt 0:00:06]} Qxe5 {[%emt 0:01:01]} 36. Rxe5 {[%emt 0:00:05]}
Bd6 {[%emt 0:00:32]} 37. Ra5 {[%emt 0:00:11]} Be4 {[%emt 0:00:17]} 38. Bc4 {
[%emt 0:00:36]} Bc5 {[%emt 0:00:41]} 39. Bd5 {[%emt 0:01:53]} Bxe3 {[%emt 0:00:
00]} 40. Bxe4 {[%emt 0:00:03]} Rc1+ {[%emt 0:00:25]} 41. Kh2 {[%emt 0:30:09]}
Bc5 {[%emt 0:01:36]} 42. Ra8+ {[%emt 0:00:00]} Bf8 {[%emt 0:00:03]} 43. Bd5 {
[%emt 0:00:00]} Rc7 {[%emt 0:00:38]} 44. a4 {[%emt 0:00:00]} g6 {[%emt 0:02:16]
} 45. a5 {[%emt 0:00:00]} Kg7 {[%emt 0:00:21]} 46. a6 {[%emt 0:00:00]} Bc5 {
[%emt 0:00:10]} 47. f4 {[%emt 0:00:00]} h5 {[%emt 0:00:27]} 48. f5 {[%emt 0:00:
00]} gxf5 {[%emt 0:03:44]} 49. Bf3 {[%emt 0:00:00]} Bf2 {[%emt 0:02:53]} 50.
Bxh5 {[%emt 0:02:32]} Ra7 {[%emt 0:11:51]} 51. Rxa7 {[%emt 0:00:19]} Bxa7 {
[%emt 0:00:04]} 52. Kh3 {[%emt 0:00:17]} Kf6 {[%emt 0:05:39]} 53. Kh4 {[%emt 0:
00:00]} Ke6 {[%emt 0:00:37]} 54. Bd1 {[%emt 0:00:20]} Be3 {[%emt 0:00:53]} 55.
Kh5 {[%emt 0:00:08]} Kf6 {[%emt 0:03:21]} 56. Bb3 {[%emt 0:00:05]} Ke7 {
[%emt 0:00:40]} 57. Bd5 {[%emt 0:00:16]} Kf6 {[%emt 0:00:29]} 58. Bb7 {[%emt 0:
00:00]} Ke7 {[%emt 0:00:07]} 59. Bc8 {[%emt 0:00:59]} Kd8 {[%emt 0:01:44]} 60.
Bxf5 {[%emt 0:00:10]} Kc7 {[%emt 0:00:05]} 61. Bg6 {[%emt 0:03:31]} f6 {
[%emt 0:00:14]} 62. Bd3 {[%emt 0:00:39]} 1/2-1/2

[Event "44th Chess Olympiad Open 2022"]
[Site "Chennai"]
[Date "2022.08.08"]
[Round "10.67"]
[White "Sai Han Thiha"]
[Black "Napoleao, Lourenco"]
[Result "1-0"]
[WhiteElo "1974"]
[BlackElo "1778"]
[Annotator "NA RC"]
[PlyCount "129"]
[EventDate "2022.??.??"]
[TimeControl "60"]

1. d4 {[%emt 0:00:03]} d5 {[%emt 0:00:04]} 2. Bf4 {[%emt 0:00:05]} c5 {[%emt 0:
00:00]} 3. e3 {[%emt 0:00:05]} Nc6 {[%emt 0:00:06]} 4. c3 {[%emt 0:00:06]} Bf5
{[%emt 0:00:11]} 5. Nd2 {[%emt 0:00:11]} e6 {[%emt 0:04:02]} 6. Ngf3 {[%emt 0:
00:00]} Qb6 {[%emt 0:01:31]} 7. Qb3 {[%emt 0:04:42]} c4 {[%emt 0:01:32]} 8.
Qxb6 {[%emt 0:06:10]} axb6 {[%emt 0:00:01]} 9. e4 {[%emt 0:06:17]} dxe4 {
[%emt 0:02:58]} 10. Ng5 {[%emt 0:00:08]} Nf6 {[%emt 0:03:38]} 11. Bxc4 {
[%emt 0:08:06]} h6 {[%emt 0:04:45]} 12. Nh3 {[%emt 0:02:16]} g5 {[%emt 0:01:46]
} 13. Be3 {[%emt 0:01:43]} Bd6 {[%emt 0:07:21]} 14. Ng1 {[%emt 0:01:53]} Nd5 {
[%emt 0:03:41]} 15. Ne2 {[%emt 0:18:23]} Bg6 {[%emt 0:04:50]} 16. h4 {[%emt 0:
00:00]} Nxe3 {[%emt 0:17:42]} 17. fxe3 {[%emt 0:00:02]} gxh4 {[%emt 0:02:01]}
18. Rxh4 {[%emt 0:00:59]} Be7 {[%emt 0:00:15]} 19. Rh3 {[%emt 0:02:28]} Bf5 {
[%emt 0:02:25]} 20. Rh2 {[%emt 0:00:23]} Bg5 {[%emt 0:01:35]} 21. Kf2 {[%emt 0:
00:00]} Rg8 {[%emt 0:06:26]} 22. Bb3 {[%emt 0:01:56]} Ne7 {[%emt 0:06:05]} 23.
Nc4 {[%emt 0:06:59]} Nc8 {[%emt 0:02:42]} 24. g3 {[%emt 0:15:28]} b5 {[%emt 0:
00:00]} 25. Na3 {[%emt 0:01:06]} Nd6 {[%emt 0:00:48]} 26. c4 {[%emt 0:00:02]}
bxc4 {[%emt 0:05:31]} 27. Nxc4 {[%emt 0:00:01]} Nxc4 {[%emt 0:05:25]} 28. Bxc4
{[%emt 0:00:01]} Rc8 {[%emt 0:00:24]} 29. b3 {[%emt 0:01:58]} Ke7 {[%emt 0:00:
00]} 30. a4 {[%emt 0:01:03]} b6 {[%emt 0:00:57]} 31. Rhh1 {[%emt 0:01:41]} Bg4
{[%emt 0:01:09]} 32. Nf4 {[%emt 0:03:54]} Bf3 {[%emt 0:00:46]} 33. Rh2 {
[%emt 0:00:06]} Rh8 {[%emt 0:03:07]} 34. a5 {[%emt 0:02:18]} bxa5 {[%emt 0:00:
00]} 35. Nh3 {[%emt 0:00:18]} Ra8 {[%emt 0:02:07]} 36. Nxg5 {[%emt 0:00:29]}
hxg5 {[%emt 0:00:00]} 37. Rxh8 {[%emt 0:00:08]} Rxh8 {[%emt 0:00:04]} 38. Rxa5
{[%emt 0:00:08]} Rh2+ {[%emt 0:00:13]} 39. Ke1 {[%emt 0:00:10]} g4 {[%emt 0:00:
00]} 40. Ra7+ {[%emt 0:06:50]} Kf6 {[%emt 0:01:27]} 41. b4 {[%emt 0:32:33]} Rg2
{[%emt 0:18:15]} 42. Bf1 {[%emt 0:00:00]} Rb2 {[%emt 0:03:39]} 43. b5 {[%emt 0:
00:00]} Rb1+ {[%emt 0:03:40]} 44. Kf2 {[%emt 0:00:00]} Rb2+ {[%emt 0:00:14]}
45. Ke1 {[%emt 0:00:00]} Rb1+ {[%emt 0:03:24]} 46. Kf2 {[%emt 0:00:00]} Rb2+ {
[%emt 0:00:19]} 47. Kg1 {[%emt 0:00:00]} Rb1 {[%emt 0:00:06]} 48. Ra2 {[%emt 0:
00:00]} Ke7 {[%emt 0:03:51]} 49. Kf2 {[%emt 0:00:00]} Kd6 {[%emt 0:01:11]} 50.
Rc2 {[%emt 0:00:00]} Kd7 {[%emt 0:00:48]} 51. Bc4 {[%emt 0:00:00]} Rh1 {
[%emt 0:01:26]} 52. Ra2 {[%emt 0:00:00]} Rh2+ {[%emt 0:00:29]} 53. Ke1 {
[%emt 0:00:00]} Rh1+ {[%emt 0:00:18]} 54. Kd2 {[%emt 0:00:00]} Kc7 {[%emt 0:00:
00]} 55. Kc3 {[%emt 0:00:00]} Kb6 {[%emt 0:00:58]} 56. Ra6+ {[%emt 0:00:23]}
Kb7 {[%emt 0:00:07]} 57. d5 {[%emt 0:01:51]} Rd1 {[%emt 0:01:25]} 58. d6 {
[%emt 0:00:56]} f5 {[%emt 0:00:23]} 59. d7 {[%emt 0:05:43]} f4 {[%emt 0:00:39]}
60. exf4 {[%emt 0:00:16]} Rxd7 {[%emt 0:01:06]} 61. Rxe6 {[%emt 0:00:02]} Rd1 {
[%emt 0:00:59]} 62. Kb4 {[%emt 0:00:02]} Rb1+ {[%emt 0:00:34]} 63. Kc5 {
[%emt 0:00:11]} Kc7 {[%emt 0:00:43]} 64. f5 {[%emt 0:00:54]} Rb2 {[%emt 0:00:
00]} 65. f6 {[%emt 0:00:06]} 1-0